bitfinex/quotes_BTCUSD_20251224
["timestamp","ask_amount","ask_price","bid_price","bid_amount"]
[1766596381483,0.06867389,87371.0,87365.0,0.00021651]
[1766596381686,0.01144544,87371.0,87365.0,0.00021651]
[1766596382127,1.29278,87372.0,87365.0,0.00021651]
[1766596382361,0.01144544,87371.0,87365.0,0.00021651]
[1766596382760,0.05722803,87370.0,87365.0,0.00021651]
[1766596382958,0.06867556,87368.0,87365.0,5.1e-07]
[1766596383183,0.0114457,87369.0,87365.0,5.1e-07]
[1766596383417,0.00011,87375.0,87369.0,0.00055]
[1766596384020,0.00011,87375.0,87368.0,0.01144583]
[1766596384361,0.00011,87375.0,87368.0,0.06867493]
[1766596384565,0.00011,87375.0,87369.0,0.0114457]
[1766596384767,0.02292439,87379.0,87368.0,0.0109347]
[1766596386208,0.01148,87379.0,87369.0,0.05722843]
[1766596386423,0.01144348,87386.0,87379.0,0.000106]
[1766596386636,0.01144321,87388.0,87376.0,0.01144479]
[1766596386841,0.01144321,87388.0,87377.0,0.01144465]
[1766596387247,0.01144321,87388.0,87374.0,0.01144505]
[1766596387248,0.01144334,87387.0,87374.0,0.01144505]
[1766596387476,0.05721743,87386.0,87373.0,0.06870576]
[1766596387698,0.06866173,87385.0,87373.0,0.08015094]
[1766596387913,0.01144374,87384.0,87373.0,0.08015094]
[1766596388533,0.01144361,87385.0,87374.0,0.01144505]
[1766596388740,0.01144361,87385.0,87375.0,0.01144492]
[1766596388957,0.01144361,87385.0,87374.0,0.06867018]
[1766596389191,0.01144374,87384.0,87374.0,0.01144505]
[1766596389426,0.01144374,87384.0,87373.0,0.08015094]
[1766596389427,0.0686636,87383.0,87373.0,0.01148]
[1766596390163,0.011444,87382.0,87373.0,0.01148]
[1766596390377,0.0686636,87383.0,87373.0,0.01148]
[1766596390581,0.0686637,87384.0,87373.0,0.01148]
[1766596390783,0.01144374,87384.0,87374.0,0.01144505]
[1766596390961,0.06866249,87384.0,87373.0,0.02292518]
[1766596391597,0.06866252,87384.0,87373.0,0.02292518]
[1766596392017,0.06866173,87385.0,87374.0,0.01144505]
[1766596392220,0.01144374,87384.0,87373.0,0.08015105]
[1766596392433,0.01144374,87384.0,87373.0,0.02292518]
[1766596392434,0.06866262,87384.0,87373.0,0.02292518]
[1766596392636,0.01144374,87384.0,87373.0,0.02292518]
[1766596394136,0.01144387,87383.0,87373.0,0.02292518]
[1766596394337,0.06866276,87384.0,87373.0,0.02292518]
[1766596394540,0.01144374,87384.0,87374.0,0.01144505]
[1766596394741,0.01144361,87385.0,87375.0,0.01144492]
[1766596394971,0.01144348,87386.0,87376.0,0.01144479]
[1766596395287,0.06866103,87386.0,87375.0,0.06866952]
[1766596395439,0.01144348,87386.0,87376.0,0.01144479]
[1766596395872,0.06866009,87387.0,87376.0,0.01144479]
[1766596396238,0.01144334,87387.0,87375.0,0.06866952]
[1766596396641,0.01144348,87386.0,87375.0,0.06866952]
[1766596396847,1.29278,87384.0,87373.0,0.02292518]
[1766596397048,1.30426,87384.0,87375.0,0.01144492]
[1766596398545,1.30426,87384.0,87374.0,0.01144505]
[1766596398712,1.31570374,87384.0,87373.0,0.08015105]
[1766596399046,1.31570374,87384.0,87374.0,0.01144505]
[1766596399247,1.37292259,87384.0,87373.0,0.08015105]
[1766596399453,1.31570374,87384.0,87374.0,0.01144505]
[1766596399630,1.37292252,87384.0,87373.0,0.08015105]
[1766596399944,0.01148,87384.0,87374.0,0.01144505]
[1766596400155,0.01148,87384.0,87375.0,0.01144492]
[1766596402000,0.01148,87384.0,87374.0,0.01144505]
[1766596402270,0.01148,87384.0,87373.0,0.01148]
[1766596402271,0.02292374,87384.0,87373.0,0.01148]
[1766596402475,0.01144387,87383.0,87373.0,0.02292518]
[1766596402702,0.01148,87384.0,87373.0,0.08015107]
[1766596402896,0.01148,87384.0,87374.0,0.05722524]
[1766596403056,0.01148,87384.0,87375.0,0.01144492]
[1766596403261,1.30422295,87390.0,87384.0,0.000106]
[1766596403465,0.01144217,87396.0,87384.0,0.000106]
[1766596403674,0.0002,87414.0,87391.0,0.01144282]
[1766596403675,1.3499861,87404.0,87391.0,0.01144282]
[1766596403871,0.01144046,87409.0,87396.0,0.00055]
[1766596403872,0.01148,87405.0,87396.0,0.00055]
[1766596404441,0.01148,87405.0,87391.0,0.01144282]
[1766596404442,0.01144151,87401.0,87390.0,0.01144295]
[1766596404760,0.01144138,87402.0,87391.0,0.01144282]
[1766596405035,0.00021639,87398.0,87391.0,0.06865679]
[1766596405415,0.00021639,87398.0,87390.0,0.06865764]
[1766596405626,0.00021639,87398.0,87391.0,0.01144282]
[1766596405814,0.00021639,87398.0,87390.0,0.06865764]
[1766596406234,0.00021639,87398.0,87390.0,0.01144295]
[1766596406610,0.00021639,87398.0,87391.0,0.01144282]
[1766596406933,0.00021639,87398.0,87390.0,0.06865771]
[1766596407518,0.00021639,87398.0,87390.0,0.01144295]
[1766596409375,0.00021639,87398.0,87391.0,0.01144282]
[1766596409766,0.00021639,87398.0,87392.0,0.01144269]
[1766596410194,0.00021639,87398.0,87393.0,0.01144256]
[1766596410317,0.00011039,87398.0,87393.0,0.01144256]
[1766596410509,0.00011039,87398.0,87392.0,0.06865608]
[1766596410911,0.00011039,87398.0,87392.0,0.01144269]
[1766596411116,0.00011039,87398.0,87393.0,0.01144256]
[1766596411970,0.00011039,87398.0,87392.0,0.06865592]
[1766596412119,0.00011039,87398.0,87393.0,0.01144256]
[1766596412319,0.00011039,87398.0,87392.0,0.06865592]
[1766596412545,0.00011039,87398.0,87390.0,0.01144295]
[1766596412759,0.00011039,87398.0,87391.0,0.01144282]
[1766596413118,0.00011039,87398.0,87393.0,0.01144256]
[1766596413559,0.00011039,87398.0,87394.0,0.01144243]
[1766596413760,0.00011039,87398.0,87394.0,0.06865408]
[1766596413964,1.37290608,87405.0,87396.0,0.01144217]
[1766596413965,0.01148,87405.0,87396.0,0.01144217]
[1766596414172,0.0458,87415.0,87405.0,0.00055]
[1766596414384,0.0002,87420.0,87405.0,0.00055]
[1766596414385,0.01148,87416.0,87407.0,0.01144073]
[1766596414599,0.01148,87416.0,87408.0,0.0114406]
[1766596414963,0.01143929,87418.0,87407.0,0.06864434]
[1766596415188,0.01143916,87419.0,87409.0,0.01144046]
[1766596415389,0.01148,87418.0,87409.0,0.01144046]
[1766596415885,0.0002,87420.0,87411.0,0.0114402]
[1766596416433,0.01168,87420.0,87411.0,0.0114402]
[1766596416655,0.0002,87420.0,87411.0,0.06864104]
[1766596416864,0.01148,87419.0,87411.0,0.06864104]
[1766596417079,0.0002,87422.0,87419.0,0.00055]
[1766596417284,0.0002,87422.0,87413.0,0.06863961]
[1766596417480,0.0002,87422.0,87415.0,0.01143968]
[1766596417684,0.0002,87422.0,87414.0,0.01143981]
[1766596417818,0.0002,87422.0,87413.0,0.06863961]
[1766596418017,0.01163876,87422.0,87412.0,0.01148]
[1766596418225,0.01163876,87422.0,87412.0,0.02292007]
[1766596418226,0.0002,87422.0,87412.0,0.02292007]
[1766596418550,0.0002,87422.0,87413.0,0.01143994]
[1766596418755,0.0002,87422.0,87415.0,0.05719833]
[1766596418986,0.0002,87422.0,87415.0,0.01143968]
[1766596419306,0.0002,87425.0,87414.0,0.01143981]
[1766596419307,0.02311837,87425.0,87414.0,0.01143981]
[1766596419478,0.0114385,87424.0,87413.0,0.06863902]
[1766596419623,0.0114385,87424.0,87412.0,0.02292007]
[1766596419822,0.01143863,87423.0,87413.0,0.01143994]
[1766596420085,0.01143876,87422.0,87412.0,0.02292007]
[1766596420246,0.06863184,87423.0,87412.0,0.02292007]
[1766596420578,0.06863184,87423.0,87413.0,0.01143994]
[1766596420803,0.06863184,87423.0,87412.0,0.02292007]
[1766596420993,0.06863184,87423.0,87412.0,0.01148]
[1766596421173,0.06863104,87424.0,87412.0,0.01148]
[1766596421377,0.01143863,87423.0,87413.0,0.01143994]
[1766596422161,0.01143863,87423.0,87412.0,0.01148]
[1766596422162,0.01143863,87423.0,87412.0,0.02292007]
[1766596422366,0.06863104,87424.0,87413.0,0.01143994]
[1766596422671,0.06863104,87424.0,87414.0,0.01143981]
[1766596422672,0.0114385,87424.0,87414.0,0.01143981]
[1766596422872,0.06863106,87424.0,87412.0,0.08011992]
[1766596423094,0.06863196,87423.0,87412.0,0.08011992]
[1766596423329,0.06863196,87423.0,87412.0,0.02292007]
[1766596423485,0.01143876,87422.0,87412.0,0.02292007]
[1766596423689,0.01143876,87422.0,87412.0,0.01148]
[1766596424078,0.01143876,87422.0,87412.0,0.02292007]
[1766596424271,0.01143876,87422.0,87412.0,0.01148]
[1766596424829,0.01143863,87423.0,87412.0,0.08012024]
[1766596425258,0.06863106,87424.0,87413.0,0.01143994]
[1766596425405,0.01143772,87430.0,87424.0,0.00055]
[1766596425590,0.06598889,87427.0,87424.0,0.00055]
[1766596425791,0.00879811,87427.0,87416.0,0.01143955]
[1766596425991,0.01143772,87430.0,87418.0,0.01143929]
[1766596425992,0.01143785,87429.0,87418.0,0.01143929]
[1766596426250,0.01143785,87429.0,87418.0,0.06863562]
[1766596426392,0.06862726,87429.0,87419.0,0.01143916]
[1766596426597,0.06862726,87429.0,87418.0,0.05719638]
[1766596427002,0.01143811,87427.0,87416.0,0.06863728]
[1766596427197,0.08010726,87429.0,87418.0,0.01143929]
[1766596427433,0.05718992,87428.0,87417.0,0.02291942]
[1766596427860,0.01148,87429.0,87418.0,0.01143929]
[1766596428092,0.02291785,87429.0,87419.0,0.01143916]
[1766596428527,0.39367698,87450.0,87419.0,0.01143916]
[1766596428528,0.01143745,87432.0,87420.0,0.01143902]
[1766596428751,0.01148,87431.0,87420.0,0.06863356]
[1766596428928,0.01148,87431.0,87423.0,0.01143863]
[1766596429286,0.06862661,87430.0,87419.0,0.01143916]
[1766596429512,0.01148,87431.0,87421.0,0.01143889]
[1766596429925,0.01143772,87430.0,87419.0,0.08011482]
[1766596430095,0.01143772,87430.0,87420.0,0.01143902]
[1766596430300,0.01143785,87429.0,87419.0,0.02291916]
[1766596430503,0.06862673,87430.0,87419.0,0.02291916]
[1766596430853,0.01143772,87430.0,87420.0,0.01143902]
[1766596431019,0.01143772,87430.0,87419.0,0.08011479]
[1766596431350,0.01143772,87430.0,87420.0,0.01143902]
[1766596431522,0.01143785,87429.0,87419.0,0.08011479]
[1766596431727,0.06862654,87430.0,87419.0,0.08011479]
[1766596432108,0.01143785,87429.0,87419.0,0.02291916]
[1766596432491,0.01143785,87429.0,87419.0,0.01148]
[1766596432700,0.06862724,87429.0,87419.0,0.02291916]
[1766596433654,0.06862724,87429.0,87419.0,0.01148]
[1766596433813,1.25375798,87428.0,87419.0,0.01148]
[1766596435791,0.05719066,87427.0,87419.0,0.01148]
[1766596436091,0.06862877,87427.0,87419.0,0.01148]
[1766596436448,1.24232,87428.0,87419.0,0.01148]
[1766596436696,1.24232,87428.0,87419.0,0.02291916]
[1766596436836,1.24232,87428.0,87419.0,0.01148]
[1766596437041,1.24232,87428.0,87419.0,0.02291916]
[1766596437346,1.25375798,87428.0,87419.0,0.01148]
[1766596438187,1.31094793,87428.0,87419.0,0.01148]
[1766596438813,0.0686288,87427.0,87419.0,0.01148]
[1766596439126,0.01143824,87426.0,87419.0,0.01148]
[1766596439490,0.0686288,87427.0,87419.0,0.01148]
[1766596439811,0.01143811,87427.0,87419.0,0.01148]
[1766596440412,0.06862892,87427.0,87419.0,0.01148]
[1766596441384,0.06862949,87426.0,87419.0,0.01148]
[1766596442028,0.06862892,87427.0,87419.0,0.01148]
[1766596442849,1.24232,87428.0,87419.0,0.02291916]
[1766596443046,0.06866808,87431.0,87428.0,0.00055]
[1766596443251,0.08010567,87431.0,87428.0,0.00055]
[1766596443508,0.08010567,87431.0,87419.0,0.08011451]
[1766596443509,0.05719288,87424.0,87419.0,0.01148]
[1766596443701,1.20766785,87429.0,87419.0,0.010931]
[1766596444109,0.06863055,87425.0,87419.0,0.010931]
[1766596444312,0.01143824,87426.0,87419.0,0.00718424]
[1766596444879,0.01143824,87426.0,87416.0,0.01143955]
[1766596444880,0.22875695,87430.0,87402.0,0.01144138]
[1766596444881,0.01148,87425.0,87402.0,0.01144138]
[1766596445091,0.01148,87425.0,87397.0,0.08471008]
[1766596445092,0.01143955,87416.0,87406.0,0.01148]
[1766596445285,0.06863972,87413.0,87406.0,0.01148]
[1766596445520,1.26487102,87412.0,87405.0,0.00010639]
[1766596446655,0.0114402,87411.0,87405.0,0.00010639]
[1766596446882,0.01144033,87410.0,87405.0,0.00010639]
[1766596447079,0.06864144,87411.0,87405.0,0.00010639]
[1766596447325,0.05720379,87407.0,87405.0,0.00010639]
[1766596447532,0.06864362,87408.0,87405.0,0.00010639]
[1766596447760,0.0114406,87408.0,87405.0,0.00010639]
[1766596447919,0.06864398,87409.0,87405.0,0.00010639]
[1766596448147,1.26487398,87409.0,87405.0,0.00010639]
[1766596448457,0.05720309,87408.0,87405.0,0.00010639]
[1766596448779,0.2402416,87412.0,87388.0,0.04576]
[1766596448780,0.01144217,87396.0,87388.0,0.04576]
[1766596448941,0.01144217,87396.0,87380.0,0.01144426]
[1766596448942,1.19623,87397.0,87396.0,0.00044263]
[1766596449145,1.19623,87397.0,87390.0,0.01148]
[1766596449340,0.06865027,87400.0,87390.0,0.01158637]
[1766596449341,1.19623,87400.0,87390.0,0.01158637]
[1766596449541,1.19623,87400.0,87397.0,0.00055]
[1766596449750,1.19623,87400.0,87391.0,0.01144282]
[1766596449956,1.19623,87400.0,87390.0,0.02302932]
[1766596450132,0.05720973,87398.0,87390.0,0.01158637]
[1766596450346,0.06865087,87399.0,87390.0,0.01158637]
[1766596450585,0.08396737,87437.0,87390.0,0.01158637]
[1766596450586,0.01148,87410.0,87401.0,0.01144151]
[1766596450786,0.01148,87409.0,87402.0,0.05720676]
[1766596450985,0.01148,87409.0,87402.0,0.01144138]
[1766596451310,0.01148,87409.0,87402.0,0.06864804]
[1766596451504,0.01148,87409.0,87402.0,0.01144138]
[1766596451848,0.01148,87412.0,87402.0,0.01144138]
[1766596451968,0.08012054,87412.0,87401.0,0.01144151]
[1766596452329,0.02292007,87412.0,87402.0,0.01144138]
[1766596452625,0.02292007,87412.0,87401.0,0.06864899]
[1766596452830,0.02292007,87412.0,87402.0,0.01144138]
[1766596452984,0.02292007,87412.0,87401.0,0.06841048]
[1766596453185,0.06864181,87411.0,87400.0,0.01144164]
[1766596453392,0.01144033,87410.0,87400.0,0.01144164]
[1766596453592,0.02292007,87412.0,87401.0,0.01144151]
[1766596453810,0.01144086,87406.0,87396.0,0.02292217]
[1766596453972,0.01144099,87405.0,87396.0,0.01148]
[1766596454170,0.01144112,87404.0,87396.0,0.01148]
[1766596454374,0.01144125,87403.0,87396.0,0.01063083]
[1766596454680,0.01144112,87404.0,87396.0,0.01063083]
[1766596454900,0.06864657,87405.0,87396.0,0.01063083]
[1766596455101,0.01144112,87404.0,87396.0,0.01063083]
[1766596456075,0.01144125,87403.0,87396.0,0.01063083]
[1766596456280,0.01144125,87403.0,85190.0,0.01004]
[1766596456281,1.19623,87401.0,87390.0,0.00010637]
[1766596456484,0.001099,87396.0,87390.0,0.00010637]
[1766596456632,1.20767151,87401.0,87390.0,0.01154932]
[1766596456833,1.19623,87401.0,87390.0,0.06876399]
[1766596457034,1.20767151,87401.0,87391.0,0.01144282]
[1766596457363,0.06865004,87400.0,87390.0,0.00010637]
[1766596457567,1.19623,87400.0,87391.0,0.0572137]
[1766596457740,1.19623,87400.0,87391.0,0.06865652]
[1766596457969,1.19623,87400.0,87392.0,0.01144269]
[1766596458945,1.19623,87400.0,87391.0,0.01144282]
[1766596459986,1.19623,87400.0,87392.0,0.01144269]
[1766596460380,0.01148,87404.0,87393.0,0.01144256]
[1766596460554,0.02292112,87404.0,87394.0,0.01144243]
[1766596460962,0.08012702,87404.0,87392.0,0.01144269]
[1766596461166,0.0572068,87403.0,87392.0,0.01144269]
[1766596461574,0.01148,87402.0,87393.0,0.01144256]
[1766596461772,0.02292138,87402.0,87392.0,0.06865601]
[1766596461973,0.01148,87402.0,87393.0,0.01144256]
[1766596462381,0.02292138,87402.0,87392.0,0.06865601]
[1766596462580,0.01148,87402.0,87393.0,0.06865524]
[1766596462781,0.01148,87402.0,87394.0,0.06865452]
[1766596463180,0.01148,87402.0,87394.0,0.01144243]
[1766596463364,0.01148,87402.0,87392.0,0.01144269]
[1766596463566,0.01148,87402.0,87393.0,0.05721282]
[1766596463773,0.01148,87402.0,87394.0,0.01144243]
[1766596464551,0.01148,87402.0,87394.0,0.0686544]
[1766596465287,0.01148,87402.0,87394.0,0.01144243]
[1766596465543,0.01148,87402.0,87393.0,0.01144256]
[1766596465695,0.01148,87402.0,87394.0,0.01144243]
[1766596465919,0.01148,87402.0,87393.0,0.01144256]
[1766596466123,0.01148,87402.0,87394.0,0.01144243]
[1766596466332,0.01148,87402.0,87394.0,0.06865442]
[1766596466994,0.01148,87402.0,87394.0,0.01144243]
[1766596467677,0.01148,87402.0,87395.0,0.0114423]
[1766596468212,0.01148,87402.0,87394.0,0.06865443]
[1766596468441,0.01148,87402.0,87395.0,0.0114423]
[1766596468842,0.01148,87402.0,87396.0,0.01144217]
[1766596470034,0.01148,87402.0,87395.0,0.06865379]
[1766596470231,0.01148,87402.0,87396.0,0.01144217]
[1766596470478,0.01148,87402.0,87393.0,0.06865488]
[1766596470684,0.02292138,87402.0,87392.0,0.068656]
[1766596470884,0.02292138,87402.0,87369.0,0.22847939]
[1766596470885,0.000549,87392.0,87390.0,0.00010637]
[1766596471045,0.000549,87392.0,87390.0,3.7e-07]
[1766596471265,0.000549,87392.0,87389.0,0.01148]
[1766596471266,0.06865621,87392.0,87389.0,0.01148]
[1766596471463,0.01154906,87392.0,87389.0,0.01148]
[1766596471641,0.06876299,87392.0,87389.0,0.00076037]
[1766596472052,0.06876299,87392.0,87380.0,0.00011]
[1766596472053,0.01144348,87386.0,87380.0,0.00011]
[1766596472256,0.05721871,87384.0,87380.0,0.00011]
[1766596472465,0.05721871,87384.0,87372.0,0.05722597]
[1766596472466,0.01144465,87377.0,87370.0,0.01144348]
[1766596472774,0.01144465,87377.0,87363.0,0.05720649]
[1766596472775,0.05722496,87375.0,87367.0,0.01148]
[1766596472982,1.23442874,87376.0,87367.0,0.01148]
[1766596473409,0.01144505,87374.0,87367.0,0.01148]
[1766596473608,1.23442874,87376.0,87367.0,0.01148]
[1766596474127,0.01144426,87380.0,87369.0,0.0114457]
[1766596474452,0.01144413,87381.0,87371.0,0.01144544]
[1766596474604,1.2344242,87382.0,87372.0,0.01144531]
[1766596474793,0.01144426,87380.0,87370.0,0.01144557]
[1766596474988,0.01144413,87381.0,87372.0,0.01144531]
[1766596475237,0.01144426,87380.0,87370.0,0.01144557]
[1766596475459,0.06866651,87379.0,87368.0,0.0686748]
[1766596475651,0.06866623,87380.0,87370.0,0.01144557]
[1766596475856,1.2344246,87382.0,87371.0,0.0686726]
[1766596476056,0.01144413,87381.0,87371.0,0.01144544]
[1766596476229,0.01144413,87381.0,87369.0,0.05722846]
[1766596476230,0.01144439,87379.0,87369.0,0.05722846]
[1766596476433,1.177204,87382.0,87371.0,0.01144544]
[1766596476655,0.01144413,87381.0,87372.0,0.01144531]
[1766596476851,0.01144413,87381.0,87371.0,0.01144544]
[1766596477252,0.01144413,87381.0,87371.0,0.06867236]
[1766596477693,0.01144426,87380.0,87371.0,0.01144544]
[1766596477926,1.16576,87382.0,87373.0,0.01144518]
[1766596478206,0.068665,87381.0,87370.0,0.06867335]
[1766596478403,0.06866797,87377.0,87366.0,0.06867653]
[1766596478616,0.01144479,87376.0,87366.0,0.0114461]
[1766596479011,0.01144479,87376.0,87367.0,0.02292596]
[1766596479218,0.01144465,87377.0,87367.0,0.02292596]
[1766596479439,0.01144387,87383.0,87367.0,0.02292596]
[1766596479574,0.01144387,87383.0,87370.0,0.01144557]
[1766596479575,0.01144426,87380.0,87370.0,0.01144557]
[1766596480651,0.06866535,87381.0,87371.0,0.01144544]
[1766596481296,0.01148,87384.0,87375.0,0.01144492]
[1766596481428,0.01148,87384.0,87374.0,0.01144505]
[1766596481860,1.20462,87383.0,87373.0,0.06867049]
[1766596482189,1.21606387,87383.0,87374.0,0.01144505]
[1766596482312,0.011444,87382.0,87372.0,0.01144531]
[1766596482511,0.011444,87382.0,87373.0,0.01144518]
[1766596483139,0.06866535,87381.0,87370.0,0.01144557]
[1766596483373,0.011444,87382.0,87373.0,0.01144518]
[1766596483575,0.011444,87382.0,87372.0,0.06867186]
[1766596483781,0.06866404,87382.0,87372.0,0.01144531]
[1766596484344,1.27328331,87383.0,87372.0,0.01144531]
[1766596484543,1.27328331,87383.0,87373.0,0.01144518]
[1766596485354,1.27328407,87382.0,87372.0,0.01144531]
[1766596485632,0.01144413,87381.0,87371.0,0.06867211]
[1766596486227,0.01144413,87381.0,87372.0,0.01144531]
[1766596486419,1.20462,87382.0,87373.0,0.06867097]
[1766596486596,1.20462,87382.0,87371.0,0.06867251]
[1766596486776,0.01144413,87381.0,87371.0,0.01144544]
[1766596487181,0.01144413,87381.0,87372.0,0.01144531]
[1766596487882,1.27328406,87382.0,87372.0,0.01144531]
[1766596488401,0.06866493,87381.0,87371.0,0.01144544]
[1766596488585,0.06866493,87381.0,87370.0,0.06867342]
[1766596488788,0.01144426,87380.0,87370.0,0.06867342]
[1766596489336,0.01144426,87380.0,87371.0,0.01144544]
[1766596489567,0.01144426,87380.0,87370.0,0.06867342]
[1766596490442,0.06866493,87381.0,87371.0,0.01144544]
[1766596491534,0.06866493,87381.0,87370.0,0.06867342]
[1766596491874,0.06866493,87381.0,87371.0,0.01144544]
[1766596492492,0.06866498,87381.0,87371.0,0.01144544]
[1766596492698,0.06866523,87381.0,87371.0,0.01144544]
[1766596492919,0.01144413,87381.0,87371.0,0.06867249]
[1766596493327,1.216064,87382.0,87371.0,0.06867249]
[1766596493636,1.20462,87382.0,87374.0,0.01144505]
[1766596493848,1.216064,87382.0,87373.0,0.01144518]
[1766596494015,1.216064,87382.0,87372.0,0.06867188]
[1766596494016,0.01144413,87381.0,87372.0,0.06867188]
[1766596494218,0.06866518,87381.0,87371.0,0.01144544]
[1766596494423,0.01144426,87380.0,87370.0,0.0686728]
[1766596494605,0.06866518,87381.0,87370.0,0.0686728]
[1766596495252,0.01144426,87380.0,87371.0,0.01144544]
[1766596495454,0.06866518,87381.0,87371.0,0.01144544]
[1766596496531,0.01144426,87380.0,87371.0,0.01144544]
[1766596496754,0.01144596,87367.0,87353.0,0.08156791]
[1766596497027,1.14420679,87397.0,87342.0,0.01144924]
[1766596497028,0.01144714,87358.0,87342.0,0.01144924]
[1766596497194,1.20462,87360.0,87351.0,0.01144806]
[1766596497424,1.20462,87360.0,87350.0,0.01148]
[1766596497641,1.20462,87360.0,87351.0,0.01144806]
[1766596497845,1.20462,87360.0,87352.0,0.01144793]
[1766596498054,0.02292636,87364.0,87354.0,0.01144767]
[1766596498185,0.02303267,87364.0,87354.0,0.01144767]
[1766596498392,0.02303267,87364.0,87353.0,0.0114478]
[1766596498393,0.01144649,87363.0,87353.0,0.06868625]
[1766596498602,0.01144662,87362.0,87351.0,0.01144806]
[1766596498821,0.01144649,87363.0,87354.0,0.01144767]
[1766596499028,0.01144649,87363.0,87352.0,0.01144793]
[1766596499275,0.01144675,87361.0,87351.0,0.01144806]
[1766596499480,0.05723519,87359.0,87350.0,0.01148]
[1766596499688,0.01144754,87355.0,87350.0,0.01148]
[1766596499863,1.12003741,87356.0,87350.0,0.01104]
[1766596500209,1.12003741,87356.0,87345.0,0.06880265]
[1766596500210,1.10859,87356.0,87345.0,0.00011]
[1766596500423,0.01148,87359.0,87345.0,0.00011]
[1766596500424,0.01144832,87349.0,87345.0,0.00011]
[1766596500618,1.17727919,87350.0,87345.0,0.00011]
[1766596500619,0.06869133,87348.0,87345.0,0.00011]
[1766596501268,1.17727977,87350.0,87345.0,0.00011]
[1766596501269,1.12003819,87350.0,87345.0,0.00011]
[1766596501471,0.0572436,87346.0,87345.0,0.00011]
[1766596501667,0.01144845,87348.0,87345.0,0.00011]
[1766596501950,0.05724351,87347.0,87345.0,0.00011]
[1766596502618,0.01144845,87348.0,87345.0,0.00011]
[1766596502900,0.05724303,87347.0,87345.0,0.00011]
[1766596503268,0.06869136,87348.0,87345.0,0.00011]
[1766596503692,0.0572434,87347.0,87345.0,0.00011]
[1766596504087,0.06869136,87348.0,87345.0,0.00011]
[1766596504511,0.05724309,87347.0,87345.0,0.00011]
[1766596504736,0.0572436,87346.0,87345.0,0.00011]
[1766596504934,1.10859,87343.0,87341.0,0.01148]
[1766596505134,1.17728517,87343.0,87336.0,0.01148]
[1766596505362,1.10859,87343.0,87336.0,0.01148]
[1766596505557,1.10859,87343.0,87331.0,0.01145068]
[1766596505558,1.10859,87343.0,87329.0,0.01148]
[1766596505766,0.01144859,87347.0,87343.0,0.000549]
[1766596505767,0.06850445,87345.0,87343.0,0.000549]
[1766596505960,0.05724572,87343.0,87334.0,0.01145029]
[1766596506199,0.01144911,87343.0,87334.0,0.01145029]
[1766596506350,0.07995318,87345.0,87335.0,0.01145016]
[1766596506544,0.01144898,87344.0,87335.0,0.01145016]
[1766596506752,0.01144898,87344.0,87330.0,0.62247593]
[1766596506753,0.0114495,87340.0,87320.0,0.01145213]
[1766596506965,1.12004042,87333.0,87322.0,0.01145186]
[1766596507176,1.12004042,87333.0,87321.0,0.01145199]
[1766596507177,0.01145121,87327.0,87321.0,0.01148]
[1766596507380,0.01145147,87325.0,87321.0,0.01148]
[1766596507691,0.01145147,87325.0,87317.0,0.00011]
[1766596507692,0.01145173,87323.0,87317.0,0.00011]
[1766596507906,0.0114516,87324.0,87317.0,0.00011]
[1766596508054,0.01145147,87325.0,87317.0,0.00011]
[1766596508265,1.17729693,87328.0,87317.0,0.00046518]
[1766596508478,0.01145147,87325.0,87317.0,0.00046518]
[1766596508865,0.01145134,87326.0,87317.0,0.00046518]
[1766596509065,0.01145147,87325.0,87317.0,0.00046518]
[1766596509268,0.0114516,87324.0,87317.0,0.00046518]
[1766596509473,1.10859,87328.0,87317.0,0.0119177]
[1766596509474,1.12004108,87328.0,87317.0,0.0119177]
[1766596509675,0.01145042,87333.0,87328.0,0.00055]
[1766596509872,0.01145108,87328.0,87319.0,0.06871332]
[1766596510072,0.01145108,87328.0,87318.0,0.01145239]
[1766596510283,0.01145042,87333.0,87317.0,0.05772695]
[1766596510284,0.01144963,87339.0,87326.0,0.01145134]
[1766596510481,0.01148,87337.0,87330.0,0.01145081]
[1766596510682,1.10859,87343.0,87335.0,0.01145016]
[1766596510918,0.01144832,87349.0,87337.0,0.0119999]
[1766596510919,0.01148,87344.0,87337.0,0.0119999]
[1766596511123,0.01148,87344.0,87337.0,0.0114499]
[1766596511320,0.01148,87344.0,87336.0,0.01145003]
[1766596511664,0.06869013,87349.0,87336.0,0.01145003]
[1766596511665,1.1773893,87350.0,87337.0,0.0229299]
[1766596511880,0.01148,87353.0,87350.0,0.00044]
[1766596512098,1.12003662,87362.0,87350.0,0.00044]
[1766596512099,0.02292727,87357.0,87350.0,0.00044]
[1766596512294,0.01144741,87356.0,87346.0,0.01144872]
[1766596512433,0.01144754,87355.0,87346.0,0.01144872]
[1766596512639,0.01144741,87356.0,87346.0,0.06869231]
[1766596512842,0.01144754,87355.0,87346.0,0.01144872]
[1766596513043,0.00010629,87355.0,87347.0,0.01144859]
[1766596513440,0.01155383,87355.0,87346.0,0.01144872]
[1766596513637,0.01155383,87355.0,87344.0,0.01144898]
[1766596513638,0.000109,87346.0,87344.0,0.01144898]
[1766596513895,0.01144767,87354.0,87345.0,0.01144885]
[1766596514095,0.06879164,87355.0,87345.0,0.01144885]
[1766596514096,0.00010629,87355.0,87345.0,0.01144885]
[1766596514426,0.01155383,87355.0,87346.0,0.01144872]
[1766596514559,0.01155383,87355.0,87345.0,0.06869252]
[1766596514759,0.01155383,87355.0,87346.0,0.01144872]
[1766596514980,0.00010629,87355.0,87347.0,0.01144859]
[1766596515147,0.00010629,87355.0,87346.0,0.01144872]
[1766596515797,0.00010629,87355.0,87344.0,0.01144898]
[1766596516010,0.01155383,87355.0,87344.0,0.01144898]
[1766596516233,0.00010629,87355.0,87346.0,0.01144872]
[1766596516768,0.00010629,87355.0,87345.0,0.01144885]
[1766596516939,0.01155383,87355.0,87345.0,0.01144885]
[1766596517136,0.01155383,87355.0,87346.0,0.01144872]
[1766596517769,0.0114478,87353.0,87343.0,0.01148]
[1766596517976,0.06868803,87352.0,87343.0,0.01148]
[1766596518213,0.01144806,87351.0,87343.0,0.01148]
[1766596518422,0.06869289,87346.0,87344.0,0.00574165]
[1766596518640,0.00055,87344.0,87340.0,0.01148]
[1766596519046,1.10859,87347.0,87340.0,0.01148]
[1766596519244,1.10859,87347.0,87341.0,0.01144937]
[1766596519576,0.01144806,87351.0,87341.0,0.06869561]
[1766596519788,1.17727761,87352.0,87342.0,0.01144924]
[1766596520106,1.10859,87352.0,87345.0,0.01144885]
[1766596520318,0.01148,87353.0,87352.0,0.000549]
[1766596520649,0.01148,87357.0,87352.0,0.000549]
[1766596520846,0.01148,87357.0,87350.0,0.06868911]
[1766596521062,1.12003688,87360.0,87350.0,0.06868911]
[1766596521233,1.12003688,87360.0,87347.0,0.06869026]
[1766596521234,0.01148,87357.0,87347.0,0.06869026]